[Event "Schack-SM 2023: Mastarklassen"]
[Site "Helsingborg Arena, Mellersta Stenbocksgatan 14, Helsingborg, Sweden"]
[Date "2023.07.05"]
[Round "5.3"]
[White "Nilsson, Patrik 1978"]
[Black "Soppela, Toni"]
[Result "1/2-1/2"]
[TimeControl "90 minutes for 40 moves + 30 minutes for the rest of games + 30 seconds per move from move one."]
[WhiteElo "2167"]
[BlackElo "2032"]

1. d4 {[%clk 01:30:56]} {[%emt 00:00:04]} Nf6 {[%clk 01:30:32]} {[%emt
00:00:28]} 2. Bf4 {[%clk 01:31:17]} {[%emt 00:00:08]} d5 {[%clk 01:30:20]}
{[%emt 00:00:42]} 3. e3 {[%clk 01:31:37]} {[%emt 00:00:10]} c5 {[%clk
01:30:06]} {[%emt 00:00:45]} 4. c3 {[%clk 01:31:25]} {[%emt 00:00:42]} Nc6
{[%clk 01:29:46]} {[%emt 00:00:50]} 5. Nd2 {[%clk 01:31:45]} {[%emt 00:00:09]}
Bg4 {[%clk 01:27:49]} {[%emt 00:02:28]} 6. Ngf3 {[%clk 01:29:32]} {[%emt
00:02:42]} e6 {[%clk 01:26:08]} {[%emt 00:02:10]} 7. Qb3 {[%clk 01:28:16]}
{[%emt 00:01:47]} Qc8 {[%clk 01:24:31]} {[%emt 00:02:06]} 8. h3 {[%clk
01:16:06]} {[%emt 00:12:41]} Bf5 {[%clk 01:19:20]} {[%emt 00:05:40]} 9. c4
{[%clk 01:11:23]} {[%emt 00:05:14]} cxd4 {[%clk 01:10:47]} {[%emt 00:09:03]} 10.
Nxd4 {[%clk 01:10:27]} {[%emt 00:01:27]} Nxd4 {[%clk 01:01:54]} {[%emt
00:09:23]} 11. exd4 {[%clk 01:10:43]} {[%emt 00:00:15]} Be7 {[%clk 00:55:53]}
{[%emt 00:06:28]} 12. c5 {[%clk 00:56:19]} {[%emt 00:14:56]} O-O {[%clk
00:53:51]} {[%emt 00:02:29]} 13. Be2 {[%clk 00:51:19]} {[%emt 00:05:33]} Ne4
{[%clk 00:34:12]} {[%emt 00:20:09]} 14. Nxe4 {[%clk 00:47:39]} {[%emt
00:04:11]} Bxe4 {[%clk 00:29:12]} {[%emt 00:05:30]} 15. O-O {[%clk 00:47:24]}
{[%emt 00:00:45]} g5 {[%clk 00:24:44]} {[%emt 00:04:57]} 16. Bxg5 {[%clk
00:33:55]} {[%emt 00:14:00]} Bxg5 {[%clk 00:21:56]} {[%emt 00:03:17]} 17. Qg3
{[%clk 00:32:01]} {[%emt 00:02:25]} Kh8 {[%clk 00:20:54]} {[%emt 00:01:30]} 18.
Qxg5 {[%clk 00:31:57]} {[%emt 00:00:36]} f6 {[%clk 00:20:24]} {[%emt 00:01:01]}
19. Qf4 {[%clk 00:26:21]} {[%emt 00:06:04]} Qe8 {[%clk 00:15:44]} {[%emt
00:05:08]} 20. Bf3 {[%clk 00:24:30]} {[%emt 00:02:23]} e5 {[%clk 00:14:09]}
{[%emt 00:02:06]} 21. Qe3 {[%clk 00:22:53]} {[%emt 00:02:07]} exd4 {[%clk
00:12:07]} {[%emt 00:02:31]} 22. Qxd4 {[%clk 00:15:13]} {[%emt 00:08:10]} Bxf3
{[%clk 00:11:52]} {[%emt 00:00:46]} 23. gxf3 {[%clk 00:15:38]} {[%emt
00:00:06]} Qh5 {[%clk 00:12:03]} {[%emt 00:00:18]} 24. Kh2 {[%clk 00:14:09]}
{[%emt 00:01:59]} Qxf3 {[%clk 00:11:59]} {[%emt 00:00:34]} 25. Rg1 {[%clk
00:13:08]} {[%emt 00:01:33]} Rae8 {[%clk 00:11:03]} {[%emt 00:01:25]} 26. Rg3
{[%clk 00:11:41]} {[%emt 00:01:57]} Qf5 {[%clk 00:10:37]} {[%emt 00:00:54]} 27.
Rag1 {[%clk 00:06:02]} {[%emt 00:06:11]} Re2 {[%clk 00:07:46]} {[%emt
00:03:20]} 28. R1g2 {[%clk 00:06:01]} {[%emt 00:00:33]} a6 {[%clk 00:04:06]}
{[%emt 00:04:09]} 29. Rg5 {[%clk 00:04:09]} {[%emt 00:02:22]} Qf3 {[%clk
00:02:29]} {[%emt 00:02:06]} 30. Rxd5 {[%clk 00:03:53]} {[%emt 00:00:47]} Rg8
{[%clk 00:02:07]} {[%emt 00:00:51]} 31. Rxg8+ {[%clk 00:03:23]} {[%emt
00:01:01]} Kxg8 {[%clk 00:02:31]} {[%emt 00:00:06]} 32. Rd8+ {[%clk 00:03:05]}
{[%emt 00:00:49]} Kg7 {[%clk 00:02:32]} {[%emt 00:00:28]} 33. Rd7+ {[%clk
00:01:34]} {[%emt 00:02:02]} Kg6 {[%clk 00:02:41]} {[%emt 00:00:20]} 34. Qg4+
{[%clk 00:00:59]} {[%emt 00:01:05]} Qxg4 {[%clk 00:03:03]} {[%emt 00:00:09]} 35.
hxg4 {[%clk 00:01:26]} {[%emt 00:00:04]} Rxf2+ {[%clk 00:03:20]} {[%emt
00:00:14]} 36. Kg3 {[%clk 00:01:51]} {[%emt 00:00:04]} Rxb2 {[%clk 00:03:29]}
{[%emt 00:00:21]} 37. a4 {[%clk 00:01:02]} {[%emt 00:01:19]} Rb3+ {[%clk
00:03:24]} {[%emt 00:00:34]} 38. Kh4 {[%clk 00:01:02]} {[%emt 00:00:30]} Rb4
{[%clk 00:03:31]} {[%emt 00:00:24]} 39. Kg3 {[%clk 00:01:17]} {[%emt 00:00:16]}
h5 {[%clk 00:02:54]} {[%emt 00:01:06]} 40. gxh5+ {[%clk 00:01:42]} {[%emt
00:00:06]} Kxh5 {[%clk 00:03:15]} {[%emt 00:00:08]} 41. Rh7+ {[%clk 00:27:43]}
{[%emt 00:04:29]} Kg5 {[%clk 00:31:29]} {[%emt 00:02:15]} 42. Rg7+ {[%clk
00:27:05]} {[%emt 00:01:10]} Kf5 {[%clk 00:31:47]} {[%emt 00:00:12]} 43. Re7
{[%clk 00:27:20]} {[%emt 00:00:15]} Rb3+ {[%clk 00:31:54]} {[%emt 00:00:23]} 44.
Kf2 {[%clk 00:27:28]} {[%emt 00:00:22]} Kf4 {[%clk 00:32:00]} {[%emt 00:00:23]}
45. Re6 {[%clk 00:27:24]} {[%emt 00:00:35]} Kf5 {[%clk 00:30:16]} {[%emt
00:02:14]} 46. Re7 {[%clk 00:27:46]} {[%emt 00:00:08]} a5 {[%clk 00:24:20]}
{[%emt 00:06:25]} 47. c6 {[%clk 00:22:49]} {[%emt 00:05:28]} bxc6 {[%clk
00:20:14]} {[%emt 00:04:36]} 48. Ra7 {[%clk 00:23:13]} {[%emt 00:00:07]} Kf4
{[%clk 00:19:38]} {[%emt 00:01:06]} 49. Rxa5 {[%clk 00:23:33]} {[%emt
00:00:10]} Rb2+ {[%clk 00:19:55]} {[%emt 00:00:11]} 50. Kf1 {[%clk 00:23:41]}
{[%emt 00:00:21]} Rc2 {[%clk 00:19:38]} {[%emt 00:00:48]} 51. Ra8 {[%clk
00:22:37]} {[%emt 00:01:34]} f5 {[%clk 00:19:26]} {[%emt 00:00:42]} 52. Rc8
{[%clk 00:21:33]} {[%emt 00:01:33]} Kf3 {[%clk 00:16:59]} {[%emt 00:02:57]} 53.
Kg1 {[%clk 00:21:58]} {[%emt 00:00:06]} f4 {[%clk 00:11:53]} {[%emt 00:05:37]}
54. a5 {[%clk 00:22:13]} {[%emt 00:00:15]} Rg2+ {[%clk 00:11:45]} {[%emt
00:00:37]} 55. Kf1 {[%clk 00:22:14]} {[%emt 00:00:28]} Ra2 {[%clk 00:11:53]}
{[%emt 00:00:22]} 56. Kg1 {[%clk 00:22:38]} {[%emt 00:00:07]} Rxa5 {[%clk
00:09:05]} {[%emt 00:03:18]} 57. Rxc6 {[%emt 00:00:08]} Ra1+ {[%clk 00:08:51]}
{[%emt 00:00:42]} 58. Kh2 {[%clk 00:23:26]} {[%emt 00:00:06]} Re1 {[%clk
00:06:23]} {[%emt 00:02:58]} 59. Rf6 {[%clk 00:17:32]} {[%emt 00:06:24]} Re2+
{[%clk 00:04:40]} {[%emt 00:02:13]} 60. Kg1 {[%clk 00:17:44]} {[%emt 00:00:17]}
Rg2+ {[%clk 00:04:29]} {[%emt 00:00:41]} 61. Kf1 {[%clk 00:17:08]} {[%emt
00:01:06]} Ra2 {[%clk 00:04:34]} {[%emt 00:00:25]} 62. Kg1 {[%clk 00:17:31]}
{[%emt 00:00:07]} Ra1+ {[%clk 00:04:15]} {[%emt 00:00:50]} 63. Kh2 {[%clk
00:17:54]} {[%emt 00:00:07]} Ke3 {[%clk 00:01:28]} {[%emt 00:03:18]} 64. Kg2
{[%clk 00:18:13]} {[%emt 00:00:12]} Ra2+ {[%clk 00:01:27]} {[%emt 00:00:31]} 65.
Kf1 {[%clk 00:18:24]} {[%emt 00:00:18]} Kf3 {[%clk 00:00:52]} {[%emt 00:01:06]}
66. Kg1 {[%clk 00:18:47]} {[%emt 00:00:06]} Rg2+ {[%clk 00:00:36]} {[%emt
00:00:47]} 67. Kf1 {[%clk 00:19:05]} {[%emt 00:00:10]} Rh2 {[%clk 00:00:53]}
{[%emt 00:00:14]} 68. Kg1 {[%clk 00:19:23]} {[%emt 00:00:12]} Rh4 {[%clk
00:00:51]} {[%emt 00:00:31]} 69. Ra6 {[%clk 00:17:18]} {[%emt 00:02:36]} Kg3
{[%clk 00:00:46]} {[%emt 00:00:35]} 70. Rg6+ {[%clk 00:17:27]} {[%emt
00:00:21]} Rg4 {[%clk 00:01:02]} {[%emt 00:00:14]} 71. Rxg4+ {[%clk 00:17:48]}
{[%emt 00:00:09]} Kxg4 {[%clk 00:01:23]} {[%emt 00:00:09]} 72. Kf2 {[%emt
00:00:20]} 1/2-1/2

[ePGN "0.1;DGT LiveChess/2.2.5"]

[Event "Schack-SM 2023: Junior-SM"]
[Site "Helsingborg Arena, Mellersta Stenbocksgatan 14, Helsingborg, Sweden"]
[Date "2023.07.05"]
[Round "5.1"]
[White "Persson, Sebastian 2007"]
[Black "Dingertz, Erik"]
[Result "0-1"]
[TimeControl "90 minutes for 40 moves + 30 minutes for the rest of the game + 30 seconds per move from move one."]
[WhiteElo "1947"]
[BlackElo "2090"]

1. d4 {[%clk 01:30:55]} {[%emt 00:00:04]} Nf6 {[%clk 01:30:52]} {[%emt
00:00:08]} 2. Nf3 {[%clk 01:31:20]} {[%emt 00:00:06]} d5 {[%clk 01:31:14]}
{[%emt 00:00:08]} 3. c4 {[%clk 01:31:43]} {[%emt 00:00:06]} e6 {[%clk
01:31:40]} {[%emt 00:00:05]} 4. Bg5 {[%clk 01:32:07]} {[%emt 00:00:06]} dxc4
{[%clk 01:31:41]} {[%emt 00:00:29]} 5. e3 {[%clk 01:31:15]} {[%emt 00:01:23]}
c5 {[%clk 01:31:07]} {[%emt 00:01:03]} 6. Bxc4 {[%clk 01:31:07]} {[%emt
00:00:37]} Be7 {[%clk 01:22:31]} {[%emt 00:09:07]} 7. O-O {[%clk 01:30:16]}
{[%emt 00:01:20]} O-O {[%clk 01:22:30]} {[%emt 00:00:32]} 8. Nc3 {[%clk
01:27:31]} {[%emt 00:03:15]} cxd4 {[%clk 01:17:57]} {[%emt 00:05:03]} 9. exd4
{[%clk 01:24:08]} {[%emt 00:03:53]} a6 {[%clk 01:16:29]} {[%emt 00:01:59]} 10.
a4 {[%clk 01:23:24]} {[%emt 00:01:13]} Nc6 {[%clk 01:16:31]} {[%emt 00:00:28]}
11. Rc1 {[%clk 01:20:59]} {[%emt 00:02:55]} Nb4 {[%clk 01:02:29]} {[%emt
00:14:33]} 12. Qb3 {[%clk 01:16:25]} {[%emt 00:05:04]} Qa5 {[%clk 00:58:03]}
{[%emt 00:04:55]} 13. Ne4 {[%clk 01:06:08]} {[%emt 00:10:46]} Rd8 {[%clk
00:52:34]} {[%emt 00:05:59]} 14. Nxf6+ {[%clk 00:47:48]} {[%emt 00:18:49]} gxf6
{[%clk 00:49:46]} {[%emt 00:03:19]} 15. Bh4 {[%clk 00:46:59]} {[%emt 00:01:19]}
Bd7 {[%clk 00:42:27]} {[%emt 00:07:49]} 16. Ne5 {[%clk 00:36:35]} {[%emt
00:10:54]} Kf8 {[%clk 00:42:34]} {[%emt 00:00:23]} 17. Ng4 {[%clk 00:32:15]}
{[%emt 00:04:49]} Bxa4 {[%clk 00:39:09]} {[%emt 00:03:56]} 18. Qg3 {[%clk
00:29:19]} {[%emt 00:03:25]} Qf5 {[%clk 00:38:47]} {[%emt 00:00:52]} 19. Nxf6
{[%clk 00:09:39]} {[%emt 00:20:11]} Bxf6 {[%clk 00:37:58]} {[%emt 00:01:20]} 20.
Bxf6 {[%clk 00:10:04]} {[%emt 00:00:05]} Qxf6 {[%clk 00:38:11]} {[%emt
00:00:17]} 21. Qa3 {[%clk 00:10:29]} {[%emt 00:00:05]} Qe7 {[%clk 00:37:29]}
{[%emt 00:01:11]} 22. Qxa4 {[%clk 00:10:13]} {[%emt 00:00:46]} b5 {[%clk
00:37:56]} {[%emt 00:00:03]} 23. Bxb5 {[%clk 00:10:37]} {[%emt 00:00:06]} axb5
{[%clk 00:38:21]} {[%emt 00:00:05]} 24. Qxb5 {[%clk 00:11:02]} {[%emt
00:00:05]} Rd5 {[%clk 00:36:34]} {[%emt 00:02:17]} 25. Rc5 {[%clk 00:09:48]}
{[%emt 00:01:45]} Rxd4 {[%clk 00:34:48]} {[%emt 00:02:15]} 26. Rfc1 {[%clk
00:06:19]} {[%emt 00:03:58]} Qd7 {[%clk 00:33:07]} {[%emt 00:02:11]} 0-1

[Event "Schack-SM 2023: Mastarklassen"]
[Site "Helsingborg Arena, Mellersta Stenbocksgatan 14, Helsingborg, Sweden"]
[Date "2023.07.05"]
[Round "5.4"]
[White "Franzen, Per-Erik"]
[Black "Jogstad, Daniel"]
[Result "0-1"]
[TimeControl "90 minutes for 40 moves + 30 minutes for the rest of games + 30 seconds per move from move one."]
[BlackTitle "CM"]
[WhiteElo "2025"]
[BlackElo "2131"]

1. d4 {[%clk 01:30:57]} {[%emt 00:00:02]} d5 {[%clk 01:29:59]} {[%emt
00:01:01]} 2. Nf3 {[%clk 01:30:30]} {[%emt 00:00:58]} Nf6 {[%clk 01:30:20]}
{[%emt 00:00:09]} 3. c4 {[%clk 01:30:47]} {[%emt 00:00:13]} c6 {[%clk
01:30:46]} {[%emt 00:00:05]} 4. e3 {[%clk 01:30:29]} {[%emt 00:00:47]} e6
{[%clk 01:31:12]} {[%emt 00:00:05]} 5. Bd3 {[%clk 01:30:23]} {[%emt 00:00:36]}
Nbd7 {[%clk 01:29:46]} {[%emt 00:01:56]} 6. O-O {[%clk 01:30:42]} {[%emt
00:00:11]} Bd6 {[%clk 01:27:41]} {[%emt 00:02:36]} 7. Nc3 {[%clk 01:27:24]}
{[%emt 00:03:47]} O-O {[%clk 01:26:32]} {[%emt 00:01:38]} 8. e4 {[%clk
01:22:33]} {[%emt 00:05:21]} dxe4 {[%clk 01:26:39]} {[%emt 00:00:23]} 9. Nxe4
{[%clk 01:22:57]} {[%emt 00:00:07]} Nxe4 {[%clk 01:27:05]} {[%emt 00:00:04]} 10.
Bxe4 {[%clk 01:23:16]} {[%emt 00:00:11]} Nf6 {[%clk 01:25:36]} {[%emt
00:01:58]} 11. Bc2 {[%clk 01:20:05]} {[%emt 00:03:41]} c5 {[%clk 01:21:55]}
{[%emt 00:04:11]} 12. Bg5 {[%clk 01:12:27]} {[%emt 00:08:08]} Be7 {[%clk
01:06:52]} {[%emt 00:15:34]} 13. Qd3 {[%clk 01:05:27]} {[%emt 00:07:29]} g6
{[%clk 01:07:12]} {[%emt 00:00:10]} 14. Rad1 {[%clk 00:58:46]} {[%emt
00:07:11]} cxd4 {[%clk 00:55:52]} {[%emt 00:11:50]} 15. Qe2 {[%clk 00:50:47]}
{[%emt 00:08:27]} Qc7 {[%clk 00:47:28]} {[%emt 00:08:55]} 16. Rxd4 {[%clk
00:49:08]} {[%emt 00:02:08]} b6 {[%clk 00:44:04]} {[%emt 00:03:55]} 17. Rfd1
{[%clk 00:42:15]} {[%emt 00:07:22]} Bb7 {[%clk 00:40:39]} {[%emt 00:03:56]} 18.
Ne5 {[%clk 00:22:59]} {[%emt 00:19:45]} Rfd8 {[%clk 00:22:08]} {[%emt
00:19:01]} 19. Ba4 {[%clk 00:13:53]} {[%emt 00:09:36]} Rxd4 {[%clk 00:19:46]}
{[%emt 00:02:52]} 20. Rxd4 {[%clk 00:14:22]} {[%emt 00:00:01]} Qc5 {[%clk
00:20:00]} {[%emt 00:00:16]} 21. Rd1 {[%clk 00:11:16]} {[%emt 00:03:35]} Rd8
{[%clk 00:06:45]} {[%emt 00:13:46]} 22. Rxd8+ {[%clk 00:11:24]} {[%emt
00:00:22]} Bxd8 {[%clk 00:07:10]} {[%emt 00:00:05]} 23. Qe3 {[%clk 00:06:06]}
{[%emt 00:05:48]} Qb4 {[%clk 00:01:58]} {[%emt 00:05:42]} 24. Bb3 {[%clk
00:04:11]} {[%emt 00:02:24]} Nd5 {[%clk 00:02:23]} {[%emt 00:00:07]} 25. Qf3
{[%clk 00:01:28]} {[%emt 00:03:12]} Qe1# {[%clk 00:02:44]} {[%emt 00:00:09]} 26.
Qe3 {[%emt 00:00:06]} Qb4 {[%emt 00:00:01]} 27. cxd5 {[%emt 00:00:04]} Bxg5
{[%emt 00:00:02]} 28. Qc3 {[%emt 00:00:04]} 0-1

[Event "Schack-SM 2023: Junior-SM"]
[Site "Helsingborg Arena, Mellersta Stenbocksgatan 14, Helsingborg, Sweden"]
[Date "2023.07.05"]
[Round "5.2"]
[White "Seo, Jung Hyun"]
[Black "Falkevall, Axel"]
[Result "1/2-1/2"]
[TimeControl "90 minutes for 40 moves + 30 minutes for the rest of the game + 30 seconds per move from move one."]
[BlackTitle "FM"]
[WhiteElo "2124"]
[BlackElo "2311"]

1. e4 {[%clk 01:30:52]} {[%emt 00:00:06]} e5 {[%clk 01:30:45]} {[%emt
00:00:15]} 2. Nf3 {[%clk 01:31:17]} {[%emt 00:00:05]} Nc6 {[%clk 01:31:10]}
{[%emt 00:00:06]} 3. d4 {[%clk 01:31:38]} {[%emt 00:00:08]} exd4 {[%clk
01:31:36]} {[%emt 00:00:05]} 4. Nxd4 {[%clk 01:32:06]} {[%emt 00:00:02]} Nf6
{[%clk 01:31:59]} {[%emt 00:00:06]} 5. Nxc6 {[%clk 01:32:34]} {[%emt 00:00:02]}
bxc6 {[%clk 01:32:21]} {[%emt 00:00:08]} 6. e5 {[%clk 01:32:45]} {[%emt
00:00:20]} Qe7 {[%clk 01:32:43]} {[%emt 00:00:08]} 7. Qe2 {[%clk 01:33:13]}
{[%emt 00:00:03]} Nd5 {[%clk 01:33:05]} {[%emt 00:00:07]} 8. c4 {[%clk
01:33:42]} {[%emt 00:00:02]} Ba6 {[%clk 01:33:06]} {[%emt 00:00:28]} 9. Nd2
{[%clk 01:34:05]} {[%emt 00:00:05]} g6 {[%clk 01:33:20]} {[%emt 00:00:18]} 10.
Nf3 {[%clk 01:34:28]} {[%emt 00:00:07]} Qb4+ {[%clk 01:33:37]} {[%emt
00:00:13]} 11. Kd1 {[%clk 01:34:55]} {[%emt 00:00:03]} Ne7 {[%clk 01:33:54]}
{[%emt 00:00:13]} 12. Qd2 {[%clk 01:33:54]} {[%emt 00:01:32]} Qb6 {[%clk
01:33:38]} {[%emt 00:00:46]} 13. h4 {[%clk 01:31:26]} {[%emt 00:02:58]} c5
{[%clk 01:30:25]} {[%emt 00:03:43]} 14. h5 {[%clk 01:30:39]} {[%emt 00:01:17]}
O-O-O {[%clk 01:29:56]} {[%emt 00:00:58]} 15. Kc2 {[%clk 01:23:21]} {[%emt
00:07:48]} d5 {[%clk 01:21:26]} {[%emt 00:09:00]} 16. exd6 {[%clk 01:19:53]}
{[%emt 00:03:59]} Nc6 {[%clk 01:18:25]} {[%emt 00:03:30]} 17. Qc3 {[%clk
01:14:06]} {[%emt 00:06:17]} Bxd6 {[%clk 01:15:17]} {[%emt 00:03:38]} 18. Bg5
{[%clk 01:12:09]} {[%emt 00:02:27]} f6 {[%clk 00:41:46]} {[%emt 00:34:01]} 19.
Be3 {[%clk 01:00:01]} {[%emt 00:12:38]} Ne5 {[%clk 00:39:20]} {[%emt 00:02:56]}
20. hxg6 {[%clk 00:54:36]} {[%emt 00:05:56]} hxg6 {[%clk 00:38:19]} {[%emt
00:01:31]} 21. Rxh8 {[%clk 00:54:34]} {[%emt 00:00:32]} Rxh8 {[%clk 00:38:44]}
{[%emt 00:00:04]} 22. Nxe5 {[%clk 00:54:33]} {[%emt 00:00:31]} Bxe5 {[%clk
00:39:00]} {[%emt 00:00:14]} 23. Qa3 {[%clk 00:53:11]} {[%emt 00:01:48]} Bb7
{[%clk 00:32:37]} {[%emt 00:06:57]} 24. Rd1 {[%clk 00:49:04]} {[%emt 00:04:36]}
Bd6 {[%clk 00:30:01]} {[%emt 00:03:06]} 25. Bd3 {[%clk 00:44:57]} {[%emt
00:04:37]} f5 {[%clk 00:29:05]} {[%emt 00:01:27]} 26. Qc3 {[%clk 00:44:46]}
{[%emt 00:00:41]} Re8 {[%clk 00:28:08]} {[%emt 00:01:27]} 27. Re1 {[%clk
00:39:00]} {[%emt 00:06:16]} Be5 {[%clk 00:24:50]} {[%emt 00:03:48]} 28. Qa3
{[%clk 00:37:56]} {[%emt 00:01:33]} Bd4 {[%clk 00:21:37]} {[%emt 00:03:44]} 29.
g3 {[%clk 00:16:27]} {[%emt 00:21:59]} Qb4 {[%clk 00:14:29]} {[%emt 00:07:38]}
30. Qxb4 {[%clk 00:16:23]} {[%emt 00:00:34]} cxb4 {[%clk 00:14:13]} {[%emt
00:00:45]} 31. Bd2 {[%clk 00:15:07]} {[%emt 00:01:47]} Rxe1 {[%clk 00:14:09]}
{[%emt 00:00:34]} 32. Bxe1 {[%clk 00:15:36]} c5 {[%clk 00:13:50]} {[%emt
00:00:49]} 33. g4 {[%clk 00:15:33]} {[%emt 00:00:33]} fxg4 {[%clk 00:11:12]}
{[%emt 00:03:07]} 34. Bxg6 {[%clk 00:15:58]} {[%emt 00:00:05]} Bf3 {[%clk
00:10:52]} {[%emt 00:00:51]} 35. b3 {[%clk 00:15:43]} {[%emt 00:00:46]} Kd7
{[%clk 00:10:28]} {[%emt 00:00:53]} 36. Kd3 {[%clk 00:16:02]} {[%emt 00:00:07]}
Ke6 {[%clk 00:08:23]} {[%emt 00:02:39]} 37. Be4 {[%clk 00:16:15]} {[%emt
00:00:17]} Ke5 {[%clk 00:08:00]} {[%emt 00:00:54]} 38. Bh7 {[%clk 00:16:30]}
{[%emt 00:00:13]} a5 {[%clk 00:06:39]} {[%emt 00:01:52]} 39. Bg6 {[%clk
00:16:47]} {[%emt 00:00:12]} Bc6 {[%clk 00:04:48]} {[%emt 00:02:22]} 40. Ke2
{[%clk 00:12:25]} {[%emt 00:04:52]} Bf3+ {[%clk 00:04:04]} {[%emt 00:01:13]} 41.
Kd3 {[%clk 00:12:51]} {[%emt 00:00:05]} Bc6 {[%clk 00:16:40]} {[%emt 00:17:54]}
42. Ke2 Bf3+ {[%clk 00:16:40]} 1/2-1/2